Cogmind - Beta 16 @@@ ROGUE MODE // 2025.11.01 @ 19:29:26 Player: Dex'o Result: Destroyed by S-10 Pest with Light Assault Rifle Performance ------------- Evolutions (1) 500 Regions Visited (2) 400 Robots Destroyed (8) 40 Value Destroyed (263) 263 Prototype IDs (4) 80 Alien Tech Used (0) 0 Bonus (0) 0 TOTAL SCORE: 1283 Bonus ------- None Cogmind --------- Core Integrity 0/400 Matter 300/300 Energy 1/100 System Corruption 0% Temperature Cool (0) Movement Core (400) Ox7 Location -9/Materials Parts ------- > --- POWER (1) -------- (None) > --- PROPULSION (2) --- (None) > --- UTILITY (4) ------ Large Storage Unit ECM Suite > --- WEAPON (2) ------- (None) > --- INVENTORY (15) --- Ion Engine Light Treads Light Treads Large Storage Unit Sensor Array Medium Laser Small Laser Beam Rifle Particle Gun Particle Gun Grenade Launcher Peak State ------------ > --- POWER ------------ Improved Ion Engine > --- PROPULSION ------- Wheel Compact Wheel > --- UTILITY ---------- Large Storage Unit Improved Terrain Scanner Seismic Detector ECM Suite > --- WEAPON ----------- Particle Gun Particle Gun > --- INVENTORY -------- Ion Engine Light Treads Light Treads Large Storage Unit Sensor Array Medium Laser Small Laser Beam Rifle Particle Gun Particle Gun Grenade Launcher [Rating: 15] Favorites ----------- Power Ion Engine Engine Ion Engine Propulsion Compact Wheel Wheel Compact Wheel Utility Seismic Detector Device Seismic Detector Storage Large Storage Unit Weapon Small Laser Energy Gun Small Laser Ballistic Gun Light Assault Rifle Special Weapon Mining Laser Build | -11 -10 -9 ------- Run | Yrd Mat Mat Slots Evolved 2 | . . 2 Power . | . . . Propulsion . | . . . Utility 2 | . . 2 Weapon . | . . . Parts Attached 17 | 7 1 9 Power 3 | 1 . 2 Engine 3 | 1 . 2 Core . | . . . Reactor . | . . . Propulsion 2 | 2 . . Treads . | . . . Leg . | . . . Wheel 2 | 2 . . Hover . | . . . Flight . | . . . Utility 5 | 2 1 2 Device 3 | 1 . 2 Storage 2 | 1 1 . Processor . | . . . Hackware . | . . . Protection . | . . . Artifact . | . . . Weapon 7 | 2 . 5 Energy Gun 5 | 2 . 3 Energy Cannon . | . . . Ballistic Gun 1 | . . 1 Ballistic Cannon . | . . . Launcher . | . . . Special Weapon 1 | . . 1 Impact Weapon . | . . . Slashing Weapon . | . . . Piercing Weapon . | . . . Special Melee Weapon . | . . . Unidentified Prototypes . | . . . Parts Lost 9 | . . 9 Power 1 | . . 1 Propulsion 2 | . . 2 Utility 2 | . . 2 Weapon 4 | . . 4 Highest Loss Streak 7 | . . 7 To Critical Strikes . | . . . Average Backups 9 | 4 8 10 Power . | 1 1 . Propulsion 1 | 1 2 2 Utility 2 | . 2 2 Weapon 4 | 1 2 5 Tool/Special . | . . . Unused Backups 9 | . 1 8 Power 1 | . 1 . Propulsion 2 | . . 2 Utility 2 | . . 2 Weapon 4 | . . 4 Tool/Special . | . . . Average Slot Usage (%) 96 | . 100 93 Engine 11 | . 14 10 Wheel 23 | . 28 21 Device 25 | . 14 30 Storage 12 | . 14 11 Energy Gun 18 | . 28 13 Ballistic Gun 3 | . . 4 Special Weapon 1 | . . 1 Peak Build Rating 15 | 7 8 15 Average Rating 10 | 4 7 12 On Entrance 5 | . 7 8 Avg Prop Armor Cover (%) . | . . . Naked Turns . | . . . Heaviest Build 37 | 14 29 37 Greatest Support 26 | 26 26 26 Greatest Overweight (x) 1 | . 1 1 Average Overweight (x) . | . . 1 Largest Inventory Capacity 15 | 8 15 15 Average Capacity 14 | 6 13 15 Most Carried 14 | 6 10 14 Average Carried 9 | 4 8 10 Final Capacity 15 | 8 15 15 Final Carried 11 | 6 10 11 Class Distribution -------------------- 92% | Mutant 7% | Scavenger-Mutant Dominant Class ---------------- Mutant | -10/Materials Mutant | -9/Materials Resources | -11 -10 -9 ----------- Run | Yrd Mat Mat Matter Collected 400 | 270 10 120 Remotely . | . . . Salvage Created 304 | 38 86 180 Parts 19 | 5 3 11 Haulers Intercepted . | . . . Recyclers Shooed . | . . . Parts Field Recycled . | . . . Retrieved Matter . | . . . Parts Self-Destructed . | . . . Prevented . | . . . Parts Restored . | . . . Kills | -11 -10 -9 ------- Run | Yrd Mat Mat Combat Hostiles Destroyed 6 | . 2 4 Guns 6 | . 2 4 Classes Destroyed 4 | 1 1 2 Tunneler 2 | 2 . . Grunt 3 | . 2 1 Duelist 1 | . . 1 Sentry 2 | . . 2 Best Kill Streak 2 | 1 1 2 Combat Bots Only 2 | . 1 2 Max Kills in Single Turn 1 | 1 1 1 Gunslinging . | . . . Exploded . | . . . Melee . | . . . Uniques/NPCs Destroyed . | . . . Combat | -11 -10 -9 -------- Run | Yrd Mat Mat Hostile Shots Fired 145 | . 6 139 Missed 35 | . 1 34 Hits 110 | . 5 105 Melee 10 | . . 10 Projectile 100 | . 5 95 Critical Strikes 4 | . . 4 Damage Taken 1284 | . 54 1230 Core 417 | . 11 406 Absorbed by Shields . | . . . Core Remaining (%) 97 | 100 95 . Volleys Fired 33 | 2 6 25 Largest 2 | 2 2 2 Hottest 150 | 90 90 150 Shots Fired 58 | 4 12 42 Gun 53 | 4 12 37 Cannon . | . . . Launcher . | . . . Special 5 | . . 5 Kinetic 10 | . . 10 Thermal 48 | 4 12 32 Explosive . | . . . Electromagnetic . | . . . Robot Hit Streak 16 | 2 4 16 Robot Miss Streak 2 | . 1 2 Penetration Max . | . . . Secondary Targets . | . . . Shots Hit Robots 42 | 2 8 32 Core Hits 15 | 2 4 9 Critical Kills . | . . . Critical Parts Destroyed . | . . . Critical Strikes 1 | . 1 . Burn 1 | . 1 . Melee Attacks . | . . . Impact . | . . . Slashing . | . . . Piercing . | . . . Sneak Attacks . | . . . Combat Hostiles . | . . . Follow-up Attacks . | . . . Damage Inflicted 538 | 38 96 404 Guns 514 | 38 96 380 Cannons . | . . . Explosions . | . . . Melee . | . . . Ramming . | . . . Kinetic 71 | . . 71 Thermal 467 | 38 96 333 Explosive . | . . . Electromagnetic . | . . . Impact . | . . . Slashing . | . . . Piercing . | . . . Highest Corruption . | . . . Average Corruption . | . . . Corruption Purged . | . . . Corruption Blocked . | . . . Overload Shots . | . . . Overflow Damage . | . . . Projectiles . | . . . Explosions . | . . . Melee . | . . . Knockbacks . | . . . Impact . | . . . Kinetic . | . . . Secondary . | . . . Self-Inflicted Damage . | . . . Shots . | . . . Rammed . | . . . Targets Rammed . | . . . Kicked . | . . . Crushed . | . . . Highest Temperature 224 | 30 108 224 Average Temperature 67 | 14 54 74 Received Heat Transfer 177 | . 30 147 Siege Activations . | . . . Martial Activations . | . . . Shielding Activations . | . . . Robots Disrupted . | . . . Combat Hostiles . | . . . Robots Corrupted . | . . . Combat Hostiles . | . . . Parts Fried . | . . . Impact Corruptions . | . . . Robots Melted . | . . . Combat Hostiles . | . . . Parts Melted 2 | . 1 1 Heat Transferred 1273 | 99 346 828 Parts Sabotaged . | . . . Parts Stolen . | . . . Parts Stripped . | . . . Power Chain Reactions . | . . . Alert | -11 -10 -9 ------- Run | Yrd Mat Mat Maximum Alert Level . | . . . Low Security (%) 100 | 100 100 100 Level 1 . | . . . Level 2 . | . . . Level 3 . | . . . Level 4 . | . . . Level 5 . | . . . High Security . | . . . Max Security . | . . . Peak Influence 40 | 5 35 40 Initial 10 | . . 10 Average 8 | 1 8 8 Influence Increases 230 | 10 85 135 Destroy 0b10 Robot/C 120 | . 40 80 Destroy 0b10 Robot/NC 10 | 10 . . Destroy Leader 50 | . 20 30 Successful Hack 16 | . 10 6 Disable Machine 15 | . . 15 Destroy Structure 4 | . . 4 Partial Spotted 15 | . 15 . Influence Decreases 230 | 10 60 160 Entered New Map 15 | . . 15 Time Decay 200 | 10 60 130 Lost Part 15 | . . 15 Squads Dispatched 3 | . 2 1 Investigation 1 | . 1 . Extermination . | . . . Reinforcement 2 | . 1 1 Assault . | . . . Garrison . | . . . Intercept . | . . . Searches Triggered . | . . . Construction Impeded . | . . . Haulers Reinforced . | . . . Active Scanning Responses . | . . . Cargo Convoy Interrupts . | . . . Stealth | -11 -10 -9 --------- Run | Yrd Mat Mat Distress Signals 1 | . . 1 Communications Jammed . | . . . Distress Signals . | . . . Times Spotted 22 | . 4 18 Peak Tracking Total 6 | . 2 6 Tactical Retreats 4 | . . 4 ECM-based Alert Blocks 9 | . . 9 Traps | -11 -10 -9 ------- Run | Yrd Mat Mat Traps Triggered 1 | . 1 . Indirectly . | . . . Trap Hack Attempts . | . . . Triggered . | . . . Disarmed . | . . . Reprogrammed . | . . . Reused . | . . . Traps Extracted . | . . . Installed . | . . . Triggered . | . . . Machines | -11 -10 -9 ---------- Run | Yrd Mat Mat Machines Disabled 1 | . . 1 Max in Single Turn 1 | . . 1 Machines Repaired . | . . . Machines Dismantled . | . . . Machines Sabotaged . | . . . Overloaded Fab Kills . | . . . Hacking | -11 -10 -9 --------- Run | Yrd Mat Mat Machines Accessed 4 | . 2 2 Terminals 4 | . 2 2 Fabricators . | . . . Repair Stations . | . . . Recycling Units . | . . . Scanalyzers . | . . . Garrison Access . | . . . Total Hacks 10 | . 5 5 Successful 6 | . 3 3 Failed 4 | . 2 2 Catastrophic 2 | . 1 1 Database Lockouts . | . . . Manual 9 | . 5 4 Terminals 10 | . 5 5 Fabricators . | . . . Repair Stations . | . . . Recycling Units . | . . . Scanalyzers . | . . . Garrison Access . | . . . Terminal Hacks 3 | . 1 2 Prototype ID Bank 2 | . 1 1 Alert Level 1 | . . 1 Fabricator Hacks . | . . . Repair Station Hacks . | . . . Recycling Unit Hacks . | . . . Scanalyzer . | . . . Garrison Access Hacks . | . . . Unauthorized Hacks 3 | . 2 1 Terminals 3 | . 2 1 Botnet 3 | . 2 1 Fabricators . | . . . Repair Stations . | . . . Recycling Units . | . . . Scanalyzers . | . . . Garrison Access . | . . . Data Cores Recovered . | . . . Used . | . . . Hacking Detections 3 | . 2 1 Full Trace Events . | . . . Feedback Events . | . . . Feedback Blocked . | . . . Robot Schematics Acquired . | . . . Robots Built . | . . . Authchips . | . . . Time . | . . . Total Robot Build Rating . | . . . Part Schematics Acquired . | . . . Parts Built . | . . . Authchips . | . . . Time . | . . . Total Part Build Rating . | . . . Part Studies Acquired . | . . . Parts Repaired . | . . . Time . | . . . Parts Recycled . | . . . Recycled Matter . | . . . Retrieved Matter . | . . . Retrieved Components . | . . . Parts Scanalyzed . | . . . Part Schematics Acquired . | . . . Parts Damaged . | . . . Bothacking | -11 -10 -9 ------------ Run | Yrd Mat Mat Used RIF Installer . | . . . Robots Hacked . | . . . Non-combat . | . . . Combat . | . . . Robot Hacks Applied . | . . . Relay Couplers Released . | . . . Fabnet Peak Effective % . | . . . Robots Rewired . | . . . Allies Hacked . | . . . Hacks Repelled . | . . . Allies | -11 -10 -9 -------- Run | Yrd Mat Mat Total Allies . | . . . Largest Group . | . . . Highest-Rated Group . | . . . Highest-Rated Ally . | . . . Total Orders . | . . . Ally Attacks . | . . . Total Damage . | . . . Kills . | . . . Allies Corrupted . | . . . Allies Melted . | . . . Intel | -11 -10 -9 ------- Run | Yrd Mat Mat Active Infowar (turns) 873 | 35 279 559 Terrain 514 | . . 514 Seismic 839 | 35 279 525 ECM 544 | . . 544 Robot Analysis Total . | . . . Derelict Logs Recovered . | . . . Drone Launches . | . . . Drone Recoveries . | . . . Exploration | -11 -10 -9 ------------- Run | Yrd Mat Mat Turns Passed 904 | 66 279 559 Spaces Moved 454 | 51 225 178 Core 8 | 8 . . Treads . | . . . Legs . | . . . Wheels 446 | 43 225 178 Hover . | . . . Flight . | . . . Fastest Speed 50 | 50 90 105 Average Speed 101 | 83 102 105 Slowest Speed 105 | 90 105 105 Overloaded Moves . | . . . Propulsion Burnouts . | . . . Robots Hopped . | . . . Potential Cave-ins . | . . . Cave-ins Triggered . | . . . Exploration Rate (%) 17 | 4 36 13 Regions Visited 2 Branch Regions . Pre-discovered Areas . | . . . Known Exits Taken . | . . . Unknown Exits Taken 2 | 1 1 . Scrap Searched . | . . . Spaces Dug 3 | . . 3 Terrain Destroyed 4 | . . 4 Melee . | . . . Projectile 4 | . . 4 AOE . | . . . Terrain Rammed . | . . . Walls Destroyed . | . . . Machines Disabled . | . . . Actions | -11 -10 -9 --------- Run | Yrd Mat Mat Total 827 | 68 262 497 Wait 297 | . 23 274 Move 452 | 50 224 178 Hop . | . . . Pick Up 22 | 9 6 7 Fast Attach 4 | 4 . . Attach 8 | 3 . 5 Detach . | . . . Swap 8 | . 1 7 Drop 3 | . 2 1 Fire 33 | 2 6 25 Melee . | . . . Ram . | . . . Kick . | . . . Crush . | . . . Escape Stasis . | . . . Rewire . | . . . Trap . | . . . Miscellaneous . | . . . Route ------- -11/Scrapyard -10/Materials -9/Materials History --------- Turn | Location | Event 8 | -11/Scrapyard | Discovered new exit (range 15) 67 | -11/Scrapyard | Entered Materials 260 | -10/Materials | Discovered new exit (range 9) 310 | -10/Materials | Build established: Mutant 346 | -10/Materials | Entered another Materials area 346 | -9/Materials | Evolved 2 slots: Utility x2 777 | -9/Materials | Core integrity fell below 50% 893 | -9/Materials | Core integrity fell below 20% 905 | -9/Materials | Destroyed by S-10 Pest with Light Assault Rifle Last Messages --------------- L-31 Rogue destroyed. K-01 Serf collects debris. G-34 Mercenary destroyed. K-01 Serf collects debris. Acquired 33 matter. K-01 Serf collects debris. R-06 Scavenger collects Particle Gun. K-01 Serf collects debris. R-06 Scavenger collects Melee Analysis Suite. K-01 Serf collects debris. ALERT: Hostiles spotted, dispatching reinforcements to Terminal M011. Imp. Ion Engine destroyed. Atomic Centrifuge disabled. Particle Gun destroyed. Seismic Detector destroyed. Wheel destroyed. Com. Wheel destroyed. Imp. Terrain Scanner destroyed. Particle Gun destroyed. Map ----- +----------------------------------------------------+ | ?????????????????????????????????????????????????? | | ?????????????????????????????????????????????????? | | ?????????????????????????????????????????????????? | | ??????????????????????????? ????????????????????? | | ??????????????????????????? ?????????????????? | | ?????????????????????? ??? #????????????????? | | ???????????????????? ????? #????????????????? | | ?????????????????????????# ##???????? ??????? | | ?????????????????????????# ????????????????? | | ?????????????????? ??????# #??????? ????????? | | ?????????????????????#???# #????????????????? | | ??????????????????#??????# #????????????????# | | ??????????????????????#### #??? ????"??#???? | | ?????????????????????## ##?? ??????????#?? | | ??????????????# #?????# #????#?????#+#???? | | ?????????????#????????# #??????????# #?#?? | | ????????????????????#?# #??????????# #???? | | ??????????????????????# #?#??????#?# #?#?? | | ??????????????????????### #???#?#?#### ##### | | ?????????#??????#??????## #######?# # | | ????????????##??????????# ##### # | | ???????????????????#????# # | | ??????????#?#?? ?#??????# %+ | | ??????????????? ????????# m #[ | | ?????????????##?#??????###s#### # # | | ?????????????? ????????# @s # # # | | ?????????????"????????##s"s" # ######### | | ????????????????????#??# """ # #?#????## | | ??????????????? ??#????# """ ###### #?????#?# | | ??????????????????#????# #?#??# #####??## | | ???????????????????????# ###?##% [##?????## | | ????????????##??#??????#####+#######+##/####???## | | ?????????????????????#??#??? #?# =% #???##?## | | ?????????????#???????##????? ??# #?##????# | | ?????????????????#??#???????#??# #?#????#? | | ?????????????#?????????#???#??## #?#?????? | | ???????????????????????????##?############??????#? | | | | | | | | | | | | | | | | | | | | | | | | | | | +----------------------------------------------------+ Best States ------------- Heat Dissipation 28 Energy Generation 12 Energy Capacity 265 Matter Stores 300 Matter Capacity 300 Sight Range 16 Terrain Scan Range 16 Terrain Scan Density 10 ECM Strength 1 Evasion (%) 50 Item Schematics ----------------- None Robot Schematics ------------------ None Fabricated ------------ Nothing Repaired ---------- Nothing Studied --------- None Alien Tech Used ----------------- None Achievements -------------- None Challenges ------------ None Game ------ Seed CentriumEncryptedMembrane Manual? 0 Play Time 00:16:51 Cumulative 13.0 hours Start 2025.11.01 @ 19:13:38 End 2025.11.01 @ 19:29:26 Sessions 1 Manual Loads 0 Difficulty Rogue Special Mode None Game No. 22 Rogue 22 Adventurer 0 Explorer 0 Win Type - Total 0 Types 0/0/0/0/0/0/0/0/0/0 Lore% 10 Gallery% 17 Achievement% 10 Wizard Run 0 Options --------- Layout 1 ASCII 0 Keyboard 0 Movement Mouse Keybinds 0 Fullscreen 2 Font 24/Smallcaps Map View 50x35 Zoom Use 0% Tactical HUD 0 Map Filters NONE Filters NONE Steam 1 RUN: 1c0e3693-3b97-4d18-9cd7-bef8151c14b0